bitfinex-derivatives/quotes_ETHF0:USTF0_20251203
["timestamp","ask_amount","ask_price","bid_price","bid_amount"]
[1764787520997,10.71882692,3139.5,3139.4,0.00249531]
[1764787521290,0.00397326,3139.5,3139.4,5.45239531]
[1764787521693,0.00397326,3139.5,3139.4,8.66019531]
[1764787523496,5.56717326,3139.5,3139.4,8.66019531]
[1764787523994,5.56717326,3139.5,3139.4,5.45239531]
[1764787524200,5.56717326,3139.5,3139.4,2.53839531]
[1764787524392,7.17977326,3139.5,3139.4,0.00249531]
[1764787526502,10.87836397,3139.5,3139.4,0.00249531]
[1764787527703,5.5632,3139.2,3139.1,0.00477881]
[1764787528003,5.5632,3138.7,3138.6,5.7437]
[1764787528293,5.5632,3138.7,3138.6,8.6577]
[1764787528501,2.7003,3138.7,3138.6,8.6577]
[1764787528801,2.7003,3138.7,3138.6,8.66035272]
[1764787529799,5.5632,3138.7,3138.6,3.21045272]
[1764787530290,5.5632,3139.0,3138.9,5.4499]
[1764787530494,5.89492823,3139.0,3138.9,5.4499]
[1764787530694,5.89492823,3139.0,3138.6,3.21045272]
[1764787530695,5.5632,3138.7,3138.6,5.74635272]
[1764787531205,5.5632,3138.7,3138.6,8.66035272]
[1764787531405,5.5632,3138.7,3138.6,5.74635272]
[1764787532509,5.5632,3138.7,3138.6,8.66035272]
[1764787533196,2.7003,3138.7,3138.6,8.66035272]
[1764787533401,1.6126,3139.0,3138.9,2.4935]
[1764787533402,6.7774,3139.0,3138.9,2.4935]
[1764787533706,7.10931881,3139.0,3138.9,2.4935]
[1764787534005,5.1648,3138.7,3138.6,8.24725272]
[1764787534306,5.1648,3138.7,3138.6,5.03945272]
[1764787534502,5.1648,3138.7,3138.6,0.00265272]
[1764787534702,5.49679391,3138.7,3138.6,0.00265272]
[1764787536104,7.58661786,3138.7,3138.3,0.00318593]
[1764787536308,5.1648,3138.3,3138.2,2.4935]
[1764787536514,2.4644,3138.3,3138.2,5.0368]
[1764787536702,16.07006,3138.9,3138.4,5.0368]
[1764787537007,2.4644,3138.5,3138.4,5.0368]
[1764787537208,2.79646782,3138.5,3138.4,5.04015739]
[1764787537602,3.36706,3138.9,3138.4,5.04015739]
[1764787537800,5.15814014,3138.8,3138.7,4.827]
[1764787538404,2.79644014,3138.8,3138.7,4.827]
[1764787538604,0.33204014,3138.8,3138.7,4.827]
[1764787538812,4.6942,3139.1,3139.0,2.2771]
[1764787539002,5.02630464,3139.1,3139.0,2.2771]
[1764787540409,5.02630464,3139.1,3139.0,4.6106]
[1764787540613,0.33210464,3139.1,3139.0,5.8186]
[1764787540910,5.02658968,3139.2,3139.1,2.2771]
[1764787542212,5.02658968,3139.2,3138.7,0.85134724]
[1764787542407,4.6942,3138.8,3138.6,4.05914724]
[1764787542705,4.6942,3138.7,3138.6,5.4849]
[1764787542911,4.6942,3138.7,3138.6,7.8184]
[1764787543310,5.02683161,3138.7,3138.6,3.2078]
[1764787544407,5.18610161,3138.7,3138.6,3.2078]
[1764787545311,6.1224,3138.5,3138.4,0.00335739]
[1764787545514,6.45503161,3138.5,3138.4,0.00335739]
[1764787547319,3.7899,3137.5,3137.3,0.85134724]
[1764787547509,4.6942,3137.3,3137.2,7.8184]
[1764787547814,5.02692593,3137.3,3137.2,7.8184]
[1764787548011,0.00477881,3137.7,3137.6,4.6106]
[1764787548209,0.34085573,3137.7,3137.6,7.82146594]
[1764787549407,0.00810839,3137.7,3137.6,7.82146594]
[1764787549915,0.00810839,3137.7,3137.6,4.61366594]
[1764787550115,0.34055943,3137.7,3137.6,4.61366594]
[1764787550320,0.00810839,3137.7,3137.6,4.61366594]
[1764787550516,4.70230839,3137.7,3137.6,0.00306594]
[1764787550713,5.03467713,3137.7,3137.6,0.00306594]
[1764787550908,5.03467713,3137.7,3137.6,2.28016594]
[1764787551916,8.24247713,3137.7,3137.6,0.00306594]
[1764787552215,8.24247713,3137.7,3137.2,7.8184]
[1764787552216,2.3325,3137.3,3137.2,7.8184]
[1764787552611,4.6942,3137.3,3137.2,7.8184]
[1764787553214,4.6942,3137.3,3137.2,7.82096468]
[1764787553722,4.6942,3137.3,3137.2,4.61316468]
[1764787554430,4.70230839,3137.7,3137.6,4.6106]
[1764787554620,5.03447345,3137.7,3137.6,2.2771]
[1764787554921,5.03447345,3137.7,3137.2,0.00256468]
[1764787555115,4.6942,3137.3,3137.2,2.27966468]
[1764787555317,4.6942,3137.3,3137.2,4.61316468]
[1764787555925,2.3325,3137.3,3137.2,4.61316468]
[1764787556423,4.6942,3137.3,3137.2,4.61316468]
[1764787557120,4.6942,3137.5,3137.4,4.6106]
[1764787557324,4.6942,3137.3,3137.2,0.00256468]
[1764787557524,5.02639996,3137.3,3137.2,0.00256468]
[1764787558325,2.3325,3137.3,3137.2,4.61316468]
[1764787558624,4.6942,3137.3,3137.2,4.61316468]
[1764787558821,4.6942,3137.3,3137.2,0.00256468]
[1764787558822,5.02629262,3137.3,3137.2,0.00256468]
[1764787559124,4.6942,3137.3,3137.2,0.00256468]
[1764787559917,4.6942,3136.7,3136.6,3.2078]
[1764787560217,4.6942,3136.7,3135.7,9.23587978]
[1764787560218,4.6942,3135.9,3135.8,0.85134724]
[1764787560417,1.4282,3136.0,3135.7,3.2078]
[1764787560418,4.6942,3135.8,3135.7,3.2078]
[1764787560724,6.1224,3136.0,3135.9,2.2771]
[1764787560927,2.3325,3136.0,3135.9,4.61415408]
[1764787561426,4.69897881,3136.1,3136.0,4.6106]
[1764787561617,0.00477881,3136.1,3136.0,5.9879]
[1764787564524,4.43047881,3136.1,3136.0,2.2771]
[1764787564723,4.4257,3136.0,3135.9,2.08685408]
[1764787565025,4.4257,3136.0,3135.9,4.40865408]
[1764787565223,2.1447,3136.0,3135.9,4.40865408]
[1764787566023,2.14947881,3136.1,3136.0,4.4051]
[1764787566223,0.00477881,3136.1,3136.0,4.4051]
[1764787566421,0.00477881,3136.1,3136.0,5.5463]
[1764787567027,2.14947881,3136.1,3136.0,5.5463]
[1764787567223,4.43047881,3136.1,3136.0,4.4051]
[1764787567424,4.43047881,3136.1,3136.0,2.0833]
[1764787568233,4.4257,3136.0,3135.9,2.08685408]
[1764787569129,5.6856,3136.0,3135.9,0.00355408]
[1764787569731,4.4257,3135.0,3134.9,5.2911]
[1764787569926,5.6856,3135.0,3134.9,3.2078]
[1764787570128,5.6856,3135.0,3134.5,4.5851]
[1764787570329,2.1447,3134.6,3134.5,8.9902]
[1764787570627,0.00274256,3134.6,3134.5,8.8788027]
[1764787572634,4.42844256,3134.6,3134.5,5.2941027]
[1764787572828,4.42844256,3134.6,3134.5,0.0030027]
[1764787573322,0.00274256,3134.6,3134.5,4.4081027]
[1764787573522,4.42844256,3134.6,3134.5,4.4081027]
[1764787573729,4.42844256,3134.6,3134.5,2.0863027]
[1764787574025,4.42844256,3134.6,3134.5,0.0030027]
[1764787574528,4.58792256,3134.6,3134.1,3.2078]
[1764787574734,4.58792256,3134.6,3134.1,5.2911]
[1764787574735,4.4257,3134.2,3134.1,5.2911]
[1764787574934,4.4257,3134.2,3134.1,7.6129]
[1764787575235,4.4257,3134.2,3134.1,5.2911]
[1764787575432,40.8,3134.4,3134.3,4.4051]
[1764787575630,2.14947881,3134.5,3134.4,4.4051]
[1764787575929,4.43047881,3134.5,3134.4,4.4051]
[1764787576132,45.23047881,3134.5,3134.4,2.0833]
[1764787576431,2.1447,3134.4,3134.3,4.40798017]
[1764787576628,0.00477881,3134.5,3134.4,4.4051]
[1764787580032,0.00477881,3134.5,3134.3,0.00288017]
[1764787580033,4.4257,3134.4,3134.3,0.00288017]
[1764787580238,4.4257,3133.8,3133.7,3.2078]
[1764787580428,2.1447,3133.4,3133.3,2.0833]
[1764787580634,4.4257,3133.4,3133.0,4.5446]
[1764787580937,3.2078,3133.7,3133.6,2.3218]
[1764787581139,2.1447,3134.0,3133.9,4.4051]
[1764787581333,2.1447,3134.0,3133.6,0.00269099]
[1764787581334,5.3525,3134.2,3134.1,4.4051]
[1764787581530,4.4257,3134.2,3133.8,3.2078]
[1764787581736,4.4257,3134.2,3134.1,2.0833]
[1764787582038,2.1447,3134.2,3134.1,4.4051]
[1764787582437,2.1447,3133.7,3133.6,4.40779099]
[1764787582742,4.47247881,3134.5,3133.6,4.40779099]
[1764787582933,0.33049829,3134.4,3133.6,4.40779099]
[1764787583133,4.47247881,3134.5,3133.6,4.40779099]
[1764787583337,5.35727881,3134.5,3134.4,4.4051]
[1764787583733,5.35727881,3134.5,3134.0,1.3368]
[1764787583734,8.89817881,3134.5,3134.0,1.3368]
[1764787584040,8.89817881,3134.5,3133.8,3.2078]
[1764787584546,8.89817881,3134.5,3133.6,0.00269099]
[1764787584547,4.47247881,3134.5,3133.9,3.2078]
[1764787585344,5.35727881,3134.5,3134.4,4.4051]
[1764787585543,7.96898121,3134.5,3134.4,2.0833]
[1764787585841,7.96898121,3134.5,3134.0,1.3368]
[1764787586043,7.63827881,3134.5,3134.4,2.0833]
[1764787586236,5.35727881,3134.5,3134.4,4.4051]
[1764787586738,3.21257881,3134.5,3134.4,4.4051]
[1764787588547,0.00477881,3134.5,3134.4,4.4051]
[1764787588740,0.00477881,3134.5,3134.4,7.6129]
[1764787591642,4.43047881,3134.5,3134.4,5.2911]
[1764787591843,2.14947881,3134.5,3134.4,7.6129]
[1764787592050,4.43047881,3134.5,3134.4,7.6129]
[1764787592345,0.00477881,3134.5,3134.4,4.4051]
[1764787592535,4.58522,3133.7,3133.6,0.00269099]
[1764787592736,2.1447,3132.9,3132.8,4.4051]
[1764787592939,2.1447,3132.7,3132.6,5.2911]
[1764787593140,40.8,3133.2,3133.1,2.0833]
[1764787593340,41.12305653,3133.2,3132.6,3.2078]
[1764787593537,40.8,3133.2,3133.1,1.9473]
[1764787593739,2.0525,3133.2,3133.1,1.94958463]
[1764787593947,4.2638,3133.2,3133.1,0.00228463]
[1764787594139,43.17553376,3133.2,3133.1,4.14048463]
[1764787594449,2.0572866,3133.5,3133.4,4.1382]
[1764787594640,2.38030082,3133.5,3133.4,4.1382]
[1764787595041,2.0572866,3133.5,3133.4,4.1382]
[1764787595241,4.2685866,3133.5,3133.4,1.9473]
[1764787595452,2.0525,3133.2,3133.1,1.94958463]
[1764787595849,2.0525,3133.2,3133.1,0.00228463]
[1764787595850,4.2638,3133.2,3133.1,0.00228463]
[1764787596057,4.58691757,3133.2,3133.1,0.00228463]
[1764787596352,4.58691757,3133.2,3132.6,3.2078]
[1764787596353,4.2638,3132.7,3132.6,3.2078]
[1764787597446,4.2638,3132.7,3132.6,5.15855358]
[1764787598145,2.0525,3132.7,3132.6,5.15855358]
[1764787598349,1.2144,3133.0,3132.6,7.06805358]
[1764787598749,1.8921,3133.0,3132.9,3.8433]
[1764787598950,2.2154189,3133.0,3132.9,3.8433]
[1764787599148,4.1045189,3133.0,3132.9,1.9338]
[1764787599855,0.3233189,3133.0,3132.9,3.8433]
[1764787600057,3.7812,3133.2,3133.1,1.9338]
[1764787600350,0.32346173,3133.2,3133.1,3.8433]
[1764787600554,1.8968866,3133.5,3133.4,3.8433]
[1764787600751,0.32815509,3133.5,3133.4,3.8433]
[1764787601255,0.0047866,3133.5,3133.4,3.8433]
[1764787602354,0.0047866,3133.5,3133.4,7.0511]
[1764787602856,3.21054256,3134.6,3134.1,3.8433]
[1764787603052,0.32339261,3134.5,3134.1,3.8433]
[1764787603450,40.8,3134.4,3134.3,3.8433]
[1764787603654,41.12339261,3134.4,3134.3,3.8433]
[1764787603849,2.21549261,3134.4,3134.3,3.8433]
[1764787604158,4.10459261,3134.4,3134.3,3.8433]
[1764787604454,4.10459261,3134.4,3134.3,1.9338]
[1764787605155,3.7812,3134.1,3134.0,0.0047866]
[1764787605354,4.10467298,3134.1,3134.0,0.0047866]
[1764787608759,4.26417298,3134.1,3134.0,0.0047866]
[1764787608953,4.26417298,3134.1,3134.0,1.9385866]
[1764787609359,4.26417298,3134.1,3134.0,0.0047866]
[1764787610155,2.21557298,3134.1,3134.0,3.8480866]
[1764787610354,0.32347298,3134.1,3134.0,3.8480866]
[1764787610555,0.32364271,3134.4,3134.3,1.9338]
[1764787610856,4.1048321,3134.4,3134.3,1.9338]
[1764787611057,4.1048321,3134.4,3134.3,3.8433]
[1764787611058,0.3236321,3134.4,3134.3,3.8433]
[1764787611253,0.32634486,3134.6,3134.5,3.8433]
[1764787611449,0.3263363,3134.6,3134.5,5.0068]
[1764787611954,0.0047866,3134.7,3134.6,3.8433]
[1764787612151,1.8968866,3134.7,3134.6,3.8433]
[1764787612849,0.0047866,3134.7,3134.6,3.8433]
[1764787613049,0.00805064,3134.7,3134.6,3.8433]
[1764787613653,0.00805064,3134.7,3134.3,3.788]
[1764787613654,1.8921,3134.4,3134.3,5.7218]
[1764787613855,3.7812,3134.4,3134.3,3.788]
[1764787614055,4.10466969,3134.4,3134.3,5.7218]
[1764787614250,3.7812,3134.4,3134.3,5.7218]
[1764787614755,3.7812,3134.4,3134.3,1.9338]
[1764787615756,3.7812,3134.4,3134.3,3.8433]
[1764787615958,3.7812,3134.4,3134.3,1.9338]
[1764787616161,3.7812,3134.1,3134.0,0.0047866]
[1764787616461,1.8921,3134.3,3134.2,3.8433]
[1764787616655,3.2078,3134.4,3134.3,3.8433]
[1764787617149,0.00805064,3134.7,3134.3,3.8433]
[1764787617454,1.90015064,3134.7,3134.6,3.8433]
[1764787617654,2.22358872,3134.7,3134.6,3.8433]
[1764787617958,1.90015064,3134.7,3134.6,3.8433]
[1764787618160,0.00805064,3134.7,3134.6,3.8433]
[1764787619455,0.00805064,3134.7,3134.0,2.30102876]
[1764787619456,3.7812,3134.1,3134.0,0.0047866]
[1764787619659,16.5322,3134.1,3134.0,0.0047866]
[1764787619855,16.85570059,3134.1,3134.0,0.0047866]
[1764787620059,57.65570059,3134.1,3134.0,0.0047866]
[1764787620557,57.65570059,3134.1,3134.0,3.8480866]
[1764787620558,41.12350059,3134.1,3134.0,3.8480866]
[1764787620754,4.10468653,3134.1,3134.0,0.0047866]
[1764787620954,4.10468653,3134.1,3133.3,3.2078]
[1764787620955,1.1547,3134.0,3133.3,3.2078]
[1764787621263,0.32348653,3133.9,3133.3,3.2078]
[1764787623156,3.7812,3133.4,3133.3,5.1416]
[1764787623356,3.7812,3133.4,3133.3,1.9338]
[1764787624764,1.8921,3133.4,3133.3,3.9387]
[1764787624955,6.8606,3133.7,3133.6,3.8671]
[1764787625160,7.18434798,3133.7,3133.6,1.8622]
[1764787626464,5.28674798,3133.7,3133.6,3.8671]
[1764787627064,7.18434798,3133.7,3133.6,3.8671]
[1764787627365,7.18434798,3133.7,3133.3,3.2078]
[1764787627565,1.7552,3133.4,3133.3,7.0749]
[1764787628065,44.0078,3134.1,3133.6,3.8671]
[1764787628269,0.32397153,3134.0,3133.9,3.8671]
[1764787628569,1.7552,3134.0,3133.9,3.8671]
[1764787628770,2.07917653,3134.0,3133.9,3.8671]
[1764787629470,0.32397653,3134.0,3133.9,3.8671]
[1764787629672,5.1225,3134.3,3134.2,1.8622]
[1764787629967,41.12410102,3134.3,3134.2,3.8671]
[1764787630168,3.97690102,3134.3,3134.2,3.8671]
[1764787630370,2.07930102,3134.3,3134.2,3.8671]
[1764787630567,3.97690102,3134.3,3134.2,3.8671]
[1764787631574,3.97690102,3134.3,3134.2,1.8622]
[1764787632572,1.7552,3134.1,3134.0,3.8671]
[1764787632764,2.07930102,3134.1,3134.0,3.8671]
[1764787634575,0.32410102,3134.1,3134.0,4.9737]
[1764787634866,0.32428847,3134.1,3134.0,4.9737]
[1764787635072,0.32428847,3134.4,3134.0,4.9737]
[1764787635262,1.1121,3134.5,3134.0,4.9737]
[1764787635263,3.97708847,3134.3,3134.2,1.8622]
[1764787635462,3.97708847,3134.3,3134.2,3.8671]
[1764787637079,2.07948847,3134.3,3134.2,3.8671]
[1764787637270,0.32428847,3134.3,3134.2,3.8671]
[1764787637569,1.7552,3134.4,3134.3,3.8671]
[1764787637776,2.07949387,3134.4,3134.3,3.8671]
[1764787638071,15.94685064,3134.7,3134.6,3.8671]
[1764787638072,0.00805064,3134.7,3134.6,3.8671]
[1764787638277,0.00805064,3134.7,3134.6,7.0749]
[1764787639373,3.66085064,3134.7,3134.3,0.85395288]
[1764787639565,1.7552,3134.3,3134.2,3.8671]
[1764787639766,0.00805064,3134.7,3134.6,3.8671]
[1764787639970,0.00805064,3134.7,3134.6,7.0749]
[1764787640175,0.00805064,3134.7,3134.6,10.8629]
[1764787641677,0.00805064,3134.7,3134.6,7.6551]
[1764787641678,1.76325064,3134.7,3134.6,7.6551]
[1764787642078,3.66085064,3134.7,3134.6,7.6551]
[1764787642466,3.66085064,3134.7,3134.6,10.8629]
[1764787642467,0.00805064,3134.7,3134.6,10.8629]
[1764787643875,1e-08,3134.7,3134.6,11.71685288]
[1764787644082,40.95944,3135.4,3134.6,11.71685288]
[1764787644286,1.91464,3135.4,3135.3,3.8671]
[1764787644479,1.7552,3135.4,3135.3,3.8671]
[1764787644780,3.2078,3135.7,3135.0,4.3144]
[1764787644781,47.6606,3135.7,3135.0,4.3144]
[1764787644980,47.66900727,3135.7,3135.0,4.32302031]
[1764787645176,47.66900727,3135.7,3135.6,1.8622]
[1764787645577,47.66900727,3135.7,3135.0,4.32302031]
[1764787645783,44.46120727,3135.7,3135.6,3.8671]
[1764787645972,3.2078,3136.2,3135.6,3.8671]
[1764787646277,1.7552,3135.7,3135.6,1.8622]
[1764787646481,3.6528,3135.7,3135.6,1.8622]
[1764787646873,1.7552,3135.7,3135.6,3.8671]
[1764787647077,1.75888046,3135.7,3135.6,3.8671]
[1764787647886,3.65648046,3135.7,3135.0,4.32302031]
[1764787649682,3.65648046,3135.7,3135.6,1.8622]
[1764787649881,1.75888046,3135.7,3135.6,3.8671]
[1764787650186,0.00368046,3135.7,3135.6,3.8671]
[1764787651180,3.6528,3135.1,3135.0,3.21642031]
[1764787651374,3.6528,3135.1,3134.2,2.28887978]
[1764787651375,1.7552,3134.3,3134.2,7.0749]
[1764787651685,40.8,3134.7,3134.6,3.8671]
[1764787651883,2.8673,3135.0,3134.9,1.8622]
[1764787652091,3.6528,3135.0,3134.9,1.8622]
[1764787652280,44.4528,3135.0,3134.9,1.8622]
[1764787652473,44.4528,3135.0,3134.9,1.86479748]
[1764787653886,3.6528,3135.0,3134.9,1.86479748]
[1764787654689,3.6528,3135.0,3134.9,0.00259748]
[1764787655084,3.97597006,3135.0,3134.9,0.00259748]
[1764787655587,3.97597006,3135.0,3134.9,1.68109748]
[1764787656186,3.97597006,3135.0,3134.9,3.41029748]
[1764787656383,4.93507006,3135.0,3134.9,0.00259748]
[1764787661193,4.93507006,3135.0,3134.2,3.2078]
[1764787661194,3.1034,3134.3,3134.2,3.2078]
[1764787661492,1.85467006,3134.3,3134.2,6.4333]
[1764787661796,1.5315,3134.3,3134.2,6.4333]
[1764787662294,1.5315,3134.3,3134.2,6.43571638]
[1764787664095,1.8553408,3134.3,3134.2,6.43571638]
[1764787664295,0.3238408,3134.3,3134.2,6.43571638]
[1764787664495,9.2454,3134.5,3134.4,3.2255]
[1764787664695,9.56924078,3134.5,3134.4,3.2255]
[1764787664894,9.56924078,3134.5,3134.4,1.5725]
[1764787665998,3.42724078,3134.5,3134.4,1.5725]
[1764787666197,4.42884078,3134.5,3134.2,3.21021638]
[1764787666392,3.1034,3134.3,3134.2,3.21021638]
[1764787666698,3.1034,3134.3,3134.2,0.00241638]
[1764787666699,16.32673078,3134.3,3134.2,0.00241638]
[1764787667196,3.1034,3133.6,3133.5,1.5725]
[1764787667797,3.1034,3133.6,3133.5,3.2255]
[1764787667993,0.0047866,3133.9,3133.8,3.2255]
[1764787668192,0.0047866,3133.9,3133.8,3.22831685]
[1764787670896,0.0047866,3133.9,3133.8,4.08100394]
[1764787671698,3.1081866,3133.9,3133.8,3.22831685]
[1764787673596,3.2676966,3133.9,3133.8,0.00281685]
[1764787673788,3.5913336,3133.9,3133.8,0.00281685]
[1764787673994,3.1034,3133.8,3133.7,3.2078]
[1764787674394,3.1034,3133.8,3133.7,6.4333]
[1764787674609,1.5315,3133.8,3133.7,6.4333]
[1764787675004,1.5315,3133.8,3133.7,3.22863364]
[1764787675498,3.42694134,3133.8,3133.7,3.22863364]
[1764787675699,3.42694134,3133.8,3133.7,1.57563364]
[1764787675700,3.42694752,3133.8,3133.7,1.57563364]
[1764787675996,3.1034,3133.8,3133.7,3.22863364]
[1764787676203,3.42697497,3133.8,3133.7,3.22863364]
[1764787676702,3.1034,3133.8,3133.7,3.22863364]
[1764787676903,1.5315,3133.8,3133.7,3.22863364]
[1764787677404,0.0047866,3133.9,3133.8,3.2255]
[1764787681797,0.0047866,3133.9,3133.8,4.07818709]
[1764787681992,3.26288,3134.6,3134.5,1.5725]
[1764787682191,1.0016,3134.5,3134.0,0.9824]
[1764787682405,1.0016,3134.5,3134.1,3.2255]
[1764787682406,3.1034,3134.2,3134.1,3.2255]
[1764787682605,3.42758379,3134.2,3134.1,3.2255]
[1764787683200,1.85568379,3134.2,3134.1,3.2255]
[1764787683497,0.32418379,3134.2,3134.1,3.2255]
[1764787683698,3.136,3134.4,3134.3,3.0973]
[1764787683906,0.32420319,3134.4,3134.3,3.0973]
[1764787684204,0.32420319,3134.4,3134.1,6.3051]
[1764787684205,3.136,3134.2,3134.1,6.3051]
[1764787684792,3.1407866,3134.5,3134.4,3.0973]
[1764787684999,1.81511554,3134.5,3134.4,3.0973]
[1764787685198,3.46501554,3134.5,3134.4,3.0973]
[1764787686102,1.81511554,3134.5,3134.4,3.0973]
[1764787686295,3.46501554,3134.5,3134.4,3.0973]
[1764787687307,0.32901554,3134.5,3134.4,3.0973]
[1764787688101,3.136,3134.2,3134.1,5.49567697]
[1764787688304,3.46039753,3134.2,3134.1,4.6405]
[1764787688501,3.46039753,3134.2,3134.1,6.3051]
[1764787689103,3.46039753,3134.2,3134.1,4.6405]
[1764787689307,3.46039753,3134.2,3134.1,6.3051]
[1764787692114,0.32439753,3134.2,3134.1,7.16027697]
[1764787692315,3.46061405,3134.2,3134.1,4.06297697]
[1764787692607,4.0323,3134.0,3133.9,1.4327]
[1764787692802,4.35691405,3134.0,3133.9,3.0973]
[1764787693006,4.35691405,3134.0,3133.9,1.4327]
[1764787693505,3.136,3133.9,3133.8,0.0047866]
[1764787693702,3.62012405,3133.9,3133.8,0.0047866]
[1764787693909,3.136,3133.4,3133.3,3.2078]
[1764787694106,0.32461405,3133.4,3133.3,3.2078]
[1764787694305,3.136,3132.9,3132.8,6.3051]
[1764787694502,3.46061405,3132.9,3132.8,4.6405]
[1764787695003,3.4639627,3132.9,3132.8,3.21034952]
[1764787695620,3.4639627,3132.9,3132.8,4.64304952]
[1764787695915,0.00334865,3132.9,3132.8,7.44039168]
[1764787696214,0.8963,3134.0,3133.3,3.0973]
[1764787696420,0.32421679,3133.9,3133.3,6.3051]
[1764787696611,41.12421679,3133.9,3133.3,6.3051]
[1764787696916,3.46021679,3133.8,3133.7,3.0973]
[1764787697213,3.46425091,3133.8,3133.7,3.0973]
[1764787697916,1.81435091,3133.8,3133.7,3.0973]
[1764787698616,3.46425091,3133.8,3133.7,3.0973]
[1764787698818,3.46425091,3133.8,3133.7,1.4327]
[1764787699214,3.46425091,3133.8,3133.3,3.2078]
[1764787699419,3.46021679,3133.7,3133.6,3.0973]
[1764787699718,1.81031679,3133.7,3133.6,3.0973]
[1764787699913,0.00403412,3133.8,3133.7,3.0973]
[1764787700114,3.14003412,3133.8,3133.7,3.2078]
[1764787700417,0.00403412,3133.8,3133.7,6.3051]
[1764787701319,1.49013412,3133.8,3133.7,6.3051]
[1764787701814,3.14003412,3133.8,3133.7,6.3051]
[1764787702328,3.14003412,3133.8,3133.7,4.6405]
[1764787702619,3.46418896,3133.8,3133.7,4.6405]
[1764787703220,3.46418896,3133.8,3133.7,6.3051]
[1764787703420,3.46418896,3133.8,3133.7,4.6405]
[1764787704015,3.46418896,3133.8,3133.7,6.3051]
[1764787704322,1.81428896,3133.8,3133.7,6.3051]
[1764787704923,1.81429096,3133.8,3133.7,6.3051]
[1764787705615,0.32819096,3133.8,3133.7,6.3051]
[1764787705819,0.00403412,3133.8,3133.7,6.3051]
[1764787706620,0.0047866,3134.5,3134.4,3.0973]
[1764787706924,1.4908866,3134.5,3134.4,3.0973]
[1764787707223,1.81501098,3134.5,3134.4,3.0973]
[1764787707717,1.81809702,3134.5,3134.4,3.0973]
[1764787707909,3.46799702,3134.5,3134.4,3.0973]
[1764787708112,0.33199702,3134.5,3134.4,3.0973]
[1764787708524,3.46799702,3134.5,3134.4,3.0973]
[1764787708723,1.81809702,3134.5,3134.4,3.0973]
[1764787709023,0.33191022,3134.5,3134.4,3.0973]
[1764787709624,0.00787264,3134.5,3134.4,3.0973]
[1764787709817,0.15944,3135.4,3135.0,3.0973]
[1764787710119,1.4861,3135.1,3135.0,3.0973]
[1764787710325,1.81005405,3135.1,3135.0,3.905]
[1764787710723,3.45995405,3135.1,3135.0,3.0973]
[1764787710926,0.3272782,3135.1,3135.0,3.90460905]
[1764787711229,1.8133782,3135.1,3135.0,3.90460905]
[1764787711424,3.4632782,3135.1,3135.0,3.10020905]
[1764787711724,3.4632782,3135.1,3135.0,0.00290905]
[1764787716728,3.4632782,3135.1,3135.0,2.80580905]
[1764787718131,1.6709782,3135.1,3135.0,3.59040905]
[1764787718325,3.0598782,3135.1,3135.0,2.80580905]
[1764787719537,3.0598782,3135.1,3135.0,0.00290905]
[1764787720334,15.7808782,3135.1,3135.0,0.00290905]
[1764787721430,15.9403282,3135.1,3135.0,0.00290905]
[1764787724943,15.9363282,3135.1,3135.0,0.00290905]
[1764787725149,15.9363282,3135.1,3135.0,1.36280905]
[1764787725434,1.6709782,3135.1,3135.0,3.53650905]
[1764787725836,3.0598782,3135.1,3135.0,3.53650905]
[1764787726141,3.0598782,3135.1,3135.0,2.75190905]
[1764787727848,3.0598782,3135.1,3135.0,0.00290905]
[1764787728247,2.7326,3134.8,3134.7,0.0047866]
[1764787728449,3.05655405,3134.8,3134.7,0.0047866]
[1764787729247,3.05655405,3134.8,3134.7,0.00843192]
[1764787730748,3.21602405,3134.8,3134.7,0.00843192]
[1764787730947,3.21602405,3134.8,3134.7,1.36833192]
[1764787731254,3.21602405,3134.8,3134.7,0.00843192]
[1764787732653,2.7326,3134.1,3134.0,3.2078]
[1764787732854,2.7326,3134.1,3133.6,4.5677]
[1764787732855,2.7326,3133.7,3133.6,4.5677]
[1764787733159,3.05655405,3133.7,3133.6,4.5677]
[1764787733651,3.05655405,3133.7,3133.6,4.57027808]
[1764787734951,3.05655405,3133.7,3133.6,3.21037808]
[1764787735646,3.05655405,3133.7,3133.6,4.57027808]
[1764787735848,3.05655405,3133.7,3133.6,5.95937808]
[1764787736250,3.05655405,3133.7,3133.6,4.57027808]
[1764787736454,3.05655405,3133.7,3133.6,3.21037808]
[1764787736956,3.05655405,3133.7,3133.6,5.95937808]
[1764787737857,3.05655405,3133.7,3133.6,2.75157808]
[1764787739063,3.05655405,3133.7,3133.6,1.36247808]
[1764787739256,3.05655405,3133.7,3133.6,0.00257808]
[1764787739563,3.05655405,3133.7,3133.6,2.75157808]
[1764787739761,3.05655405,3133.7,3133.6,0.00257808]
[1764787740458,2.7326,3133.2,3133.1,4.5677]
[1764787740662,2.7326,3133.2,3133.1,3.2078]
[1764787740663,2.89215,3133.2,3133.1,3.2078]
[1764787740959,2.89215,3133.2,3132.4,0.855033]
[1764787740960,2.1656,3132.5,3132.4,0.855033]
[1764787741163,2.7326,3131.9,3131.8,4.5677]
[1764787741351,2.7326,3131.9,3131.5,1.639633]
[1764787741352,12.081,3132.0,3131.9,2.749]
[1764787741657,3.8360405,3132.0,3131.9,0.003295]
[1764787741856,0.0036832,3132.0,3131.9,2.752295]
[1764787742064,10.7045,3132.5,3132.4,2.749]
[1764787742065,40.8,3132.5,3132.4,2.749]
[1764787742969,3.2078,3132.9,3132.4,2.749]
[1764787743262,5.76971459,3132.5,3132.4,1.2515]
[1764787743459,44.77381459,3132.5,3131.9,2.530695]
[1764787743857,44.77381459,3132.5,3132.4,1.2515]
[1764787744062,40.80381459,3132.5,3132.4,2.5274]
[1764787744360,40.80381459,3132.5,3132.0,0.5208]
[1764787744562,41.56601459,3132.5,3132.0,0.5208]
[1764787744864,41.56601459,3132.5,3132.4,1.2515]
[1764787745361,41.56601459,3132.5,3131.9,1.254795]
[1764787745362,2.5581,3132.0,3131.9,1.254795]
[1764787745657,1.2614,3132.0,3131.9,2.530695]
[1764787745863,44.77381459,3132.5,3131.9,2.530695]
[1764787746056,57.48981459,3132.5,3131.9,2.530695]
[1764787746261,2.5581,3132.0,3131.9,0.003295]
[1764787746459,57.48981459,3132.5,3131.9,2.530695]
[1764787746664,2.5581,3132.0,3131.9,0.003295]